bitfinex/quotes_BTCUSD_20241222
["timestamp","ask_amount","ask_price","bid_price","bid_amount"]
[1734908817896,0.0001712,95735.0,95734.0,0.56316162]
[1734908818296,0.0091712,95735.0,95734.0,0.359912]
[1734908819543,0.0001712,95735.0,95734.0,0.358912]
[1734908819878,0.0001712,95735.0,95734.0,0.3906436]
[1734908820103,0.0001712,95735.0,95734.0,0.3896436]
[1734908820475,0.0001712,95735.0,95734.0,0.3906436]
[1734908821122,0.0001712,95735.0,95734.0,0.491952]
[1734908821325,0.0001712,95735.0,95734.0,0.490952]
[1734908822697,0.0091712,95735.0,95734.0,0.491952]
[1734908822900,0.0001712,95735.0,95734.0,0.490952]
[1734908823252,0.0091712,95735.0,95734.0,0.491952]
[1734908823457,0.0091712,95735.0,95734.0,0.490952]
[1734908823458,0.0001712,95735.0,95734.0,0.490952]
[1734908824017,0.0001712,95735.0,95734.0,0.492952]
[1734908824301,0.0001712,95735.0,95734.0,0.490952]
[1734908824456,0.0001712,95735.0,95734.0,0.3896436]
[1734908824665,0.0091712,95735.0,95734.0,0.3906436]
[1734908824869,0.0091712,95735.0,95734.0,0.0317316]
[1734908825296,0.01471242,95735.0,95734.0,0.03277608]
[1734908825454,0.0091712,95735.0,95734.0,0.30335448]
[1734908825656,0.0091712,95735.0,95734.0,0.30231]
[1734908825855,0.0001712,95735.0,95734.0,0.13204]
[1734908826101,0.000171,95770.0,95737.0,0.1]
[1734908826273,0.000171,95770.0,95769.0,0.208835]
[1734908827986,0.001171,95770.0,95769.0,0.217835]
[1734908828454,0.001171,95770.0,95769.0,0.009]
[1734908828864,0.00171063,95770.0,95769.0,0.009]
[1734908829068,0.21054363,95770.0,95769.0,0.009]
[1734908829389,0.00634485,95770.0,95762.0,0.03157522]
[1734908829716,0.00734485,95770.0,95769.0,0.009]
[1734908829909,0.00634485,95770.0,95763.0,0.208848]
[1734908830113,0.00071063,95770.0,95763.0,0.208848]
[1734908830314,0.00171063,95770.0,95769.0,0.009]
[1734908830614,0.00071063,95770.0,95763.0,0.082848]
[1734908830836,0.00071063,95770.0,95762.0,0.03157522]
[1734908831072,0.00171063,95770.0,95769.0,0.009]
[1734908831280,0.00071063,95770.0,95762.0,0.03157522]
[1734908831473,0.10071063,95770.0,95762.0,0.03157522]
[1734908831679,0.10071063,95770.0,95763.0,0.208848]
[1734908831898,0.10071063,95770.0,95762.0,0.03157522]
[1734908832273,0.208838,95768.0,95752.0,0.20887]
[1734908832490,0.208846,95765.0,95751.0,0.208873]
[1734908832669,0.208848,95763.0,95751.0,0.208873]
[1734908832875,0.0768,95764.0,95756.0,0.208863]
[1734908833070,0.0768,95764.0,95761.0,0.208853]
[1734908833457,0.10171063,95770.0,95761.0,0.208853]
[1734908833458,0.10071063,95770.0,95762.0,0.208851]
[1734908833653,0.10071063,95770.0,95761.0,0.208853]
[1734908833654,0.10071063,95770.0,95767.0,0.208839]
[1734908833915,0.10071063,95770.0,95755.0,0.208864]
[1734908834120,0.10071063,95770.0,95761.0,0.417704]
[1734908834478,0.10071063,95770.0,95765.0,0.208843]
[1734908834684,0.10071063,95770.0,95762.0,0.20885]
[1734908835837,0.10071063,95770.0,95760.0,0.208853]
[1734908836041,0.10071063,95770.0,95757.0,0.20886]
[1734908836244,0.1243084,95769.0,95755.0,0.003]
[1734908836448,0.12901286,95769.0,95742.0,0.15]
[1734908836656,0.00470446,95769.0,95764.0,0.208845]
[1734908837504,0.00470446,95769.0,95760.0,0.208854]
[1734908837854,0.00470446,95769.0,95743.0,0.1013084]
[1734908837855,0.208838,95768.0,95744.0,0.15]
[1734908837986,0.00470446,95769.0,95755.0,0.208865]
[1734908838193,0.00470534,95768.0,95759.0,0.208857]
[1734908838420,0.00470534,95768.0,95757.0,0.20886]
[1734908838603,0.30954463,95770.0,95757.0,0.417721]
[1734908838818,0.00470446,95767.0,95750.0,0.15]
[1734908839042,0.10071063,95770.0,95744.0,0.15]
[1734908839043,0.208844,95765.0,95764.0,0.005]
[1734908839242,0.208844,95765.0,95750.0,0.208876]
[1734908839548,0.208844,95765.0,95750.0,0.417753]
[1734908839747,0.10601111,95765.0,95740.0,0.03072623]
[1734908839919,0.083,95762.0,95740.0,0.03072623]
[1734908840156,0.1843084,95762.0,95757.0,0.005]
[1734908840368,0.083,95762.0,95755.0,0.208864]
[1734908840532,0.00468952,95761.0,95759.0,0.208857]
[1734908840780,0.00468952,95761.0,95756.0,0.208864]
[1734908840951,0.00468952,95761.0,95755.0,0.208864]
[1734908841128,0.0832,95774.0,95758.0,0.208859]
[1734908841306,0.0832,95774.0,95749.0,0.02132356]
[1734908841509,0.00466708,95769.0,95759.0,0.208856]
[1734908841713,0.0832,95774.0,95763.0,0.208846]
[1734908841911,0.00466488,95768.0,95751.0,0.15]
[1734908842317,0.00071063,95770.0,95751.0,0.15]
[1734908842524,0.00467837,95767.0,95751.0,0.15]
[1734908842724,0.023,95768.0,95746.0,0.208886]
[1734908842923,0.208853,95762.0,95746.0,0.208886]
[1734908843156,0.208844,95765.0,95750.0,0.208875]
[1734908843405,0.00465803,95761.0,95754.0,0.208867]
[1734908843608,0.00071063,95770.0,95767.0,0.208839]
[1734908843811,0.00071063,95770.0,95767.0,0.208838]
[1734908844011,0.00468089,95769.0,95767.0,0.417677]
[1734908844138,0.00071063,95770.0,95767.0,0.208838]
[1734908844342,0.00071063,95770.0,95746.0,0.005]
[1734908844601,0.00071063,95770.0,95764.0,0.208846]
[1734908845975,0.00071063,95770.0,95767.0,0.001]
[1734908846380,0.00468089,95769.0,95767.0,0.001]
[1734908846555,0.00468089,95769.0,95760.0,0.208853]
[1734908847054,0.00071063,95770.0,95760.0,0.208853]
[1734908847255,0.00071063,95770.0,95764.0,0.001]
[1734908847463,0.00468001,95768.0,95764.0,0.001]
[1734908847669,0.208838,95768.0,95753.0,0.208868]
[1734908848104,0.208838,95768.0,95747.0,0.208881]
[1734908848105,0.0816,95765.0,95747.0,0.02664819]
[1734908848305,0.208848,95763.0,95747.0,0.02664819]
[1734908848479,0.20887,95754.0,95740.0,0.208897]
[1734908848711,0.208864,95756.0,95740.0,0.208897]
[1734908848842,0.00466424,95753.0,95740.0,0.208897]
[1734908849042,0.10597264,95753.0,95732.0,0.208916]
[1734908849233,0.1013084,95752.0,95732.0,0.208916]
[1734908849587,0.208882,95748.0,95735.0,0.15]
[1734908850006,0.208886,95746.0,95735.0,0.15]
[1734908850405,0.00465721,95745.0,95735.0,0.15]
[1734908850625,0.00465721,95745.0,95738.0,0.208903]
[1734908850745,0.00465721,95745.0,95740.0,0.208898]
[1734908850977,0.0794,95747.0,95740.0,0.208898]
[1734908851197,0.00460081,95746.0,95740.0,0.208898]
[1734908851402,0.00460081,95746.0,95735.0,0.159]
[1734908852046,0.00460081,95746.0,95738.0,0.208903]
[1734908852253,0.00460081,95746.0,95733.0,0.208914]
[1734908852679,0.00560081,95746.0,95743.0,0.20889]
[1734908852886,0.001,95746.0,95743.0,0.20889]
[1734908853049,0.0776,95756.0,95743.0,0.20889]
[1734908853256,0.0776,95756.0,95748.0,0.208881]
[1734908855601,0.0776,95756.0,95748.0,0.082881]
[1734908855855,0.0776,95756.0,95740.0,0.208899]
[1734908856092,0.0776,95756.0,95740.0,0.12580264]
[1734908856291,0.0786,95756.0,95748.0,0.007]
[1734908856497,0.001,95756.0,95748.0,0.007]
[1734908856694,0.001,95756.0,95754.0,0.15]
[1734908856875,0.001,95756.0,95755.0,0.208866]
[1734908857803,0.001,95756.0,95755.0,0.349364]
[1734908857938,0.001,95756.0,95755.0,0.6006724]
[1734908858805,0.0475,95782.0,95769.0,0.208835]
[1734908859857,0.256307,95782.0,95765.0,0.208842]
[1734908860054,0.000171,95788.0,95768.0,0.15]
[1734908860300,0.001,95770.0,95769.0,0.47018748]
[1734908860475,0.000171,95788.0,95769.0,1.1378844]
[1734908860670,0.000171,95788.0,95787.0,0.208796]
[1734908860965,0.001,95800.0,95787.0,0.208796]
[1734908860966,0.001,95800.0,95798.0,0.208772]
[1734908861181,0.001,95800.0,95798.0,0.4600804]
[1734908861905,0.001,95800.0,95792.0,0.208783]
[1734908862105,0.001,95800.0,95780.0,0.12580264]
[1734908862106,0.001,95800.0,95797.0,0.208774]
[1734908862424,0.001,95800.0,95798.0,0.1013084]
[1734908862619,0.001,95800.0,95798.0,0.1103084]
[1734908862943,0.001,95800.0,95798.0,0.1013084]
[1734908863511,0.001,95800.0,95798.0,0.10235205]
[1734908863707,0.001,95800.0,95798.0,0.1103084]
[1734908864040,0.001,95800.0,95798.0,0.11135206]
[1734908864405,0.001,95800.0,95798.0,0.26135206]
[1734908864653,0.001,95800.0,95798.0,0.2603084]
[1734908864808,0.19268813,95820.0,95806.0,0.208753]
[1734908865011,0.208709,95828.0,95806.0,0.208753]
[1734908865419,0.208709,95828.0,95798.0,0.2603084]
[1734908865633,7e-05,95832.0,95810.0,0.12580264]
[1734908865837,7e-05,95832.0,95828.0,0.208707]
[1734908866045,7e-05,95832.0,95810.0,0.22711104]
[1734908866046,7e-05,95832.0,95826.0,0.208711]
[1734908866280,7e-05,95832.0,95812.0,0.208742]
[1734908866281,7e-05,95832.0,95811.0,0.15]
[1734908866482,7e-05,95832.0,95822.0,0.208718]
[1734908866685,0.001,95828.0,95823.0,0.208718]
[1734908866893,7e-05,95832.0,95823.0,0.417436]
[1734908867114,7e-05,95832.0,95823.0,0.41759799]
[1734908868275,7e-05,95832.0,95828.0,0.208707]
[1734908869554,7e-05,95832.0,95828.0,0.209707]
[1734908869755,7e-05,95832.0,95828.0,0.208707]
[1734908870192,7e-05,95832.0,95828.0,0.214707]
[1734908870690,7e-05,95832.0,95828.0,0.11244433]
[1734908870901,7e-05,95832.0,95828.0,0.02973733]
[1734908871344,7e-05,95832.0,95828.0,0.23244433]
[1734908871768,7e-05,95832.0,95828.0,0.24144433]
[1734908871937,7e-05,95832.0,95828.0,0.03273733]
[1734908872366,7e-05,95832.0,95828.0,0.24144433]
[1734908872551,7e-05,95832.0,95828.0,0.02373733]
[1734908872760,7e-05,95832.0,95828.0,0.009]
[1734908872961,7e-05,95832.0,95823.0,0.23015561]
[1734908873492,0.0144878,95829.0,95828.0,0.009]
[1734908873959,0.24453982,95829.0,95828.0,0.009]
[1734908874134,0.2434962,95829.0,95828.0,0.009]
[1734908874475,0.2664962,95829.0,95828.0,0.009]
[1734908874673,0.123,95824.0,95823.0,0.00016199]
[1734908875032,0.208744,95811.0,95810.0,8.55e-05]
[1734908875242,0.3100524,95811.0,95810.0,0.00024755]
[1734908875444,0.0785,95824.0,95810.0,0.00024755]
[1734908875772,0.0785,95824.0,95811.0,0.208743]
[1734908875975,0.0785,95824.0,95823.0,0.009]
[1734908876143,0.0785,95824.0,95815.0,0.208733]
[1734908876446,0.0785,95824.0,95810.0,0.00024755]
[1734908876447,0.00104362,95823.0,95810.0,0.00024755]
[1734908877424,0.20872,95822.0,95811.0,0.208744]
[1734908877629,0.00104362,95821.0,95811.0,0.208744]
[1734908877854,0.00104362,95823.0,95811.0,0.208744]
[1734908878053,0.00104362,95823.0,95811.0,0.212744]
[1734908878269,0.0785,95824.0,95811.0,0.212744]
[1734908878270,0.0785,95824.0,95812.0,0.208742]
[1734908878678,0.00104362,95823.0,95812.0,0.208742]
[1734908878854,0.20976162,95823.0,95812.0,0.208742]
[1734908879899,0.20976162,95823.0,95810.0,0.023864]
[1734908880120,0.20976162,95823.0,95812.0,0.004]
[1734908880698,0.20976162,95823.0,95811.0,0.208744]
[1734908881295,0.0785,95824.0,95807.0,0.00016218]
[1734908881500,0.41847962,95823.0,95808.0,0.20875]
[1734908881972,0.41847962,95823.0,95816.0,0.03]
[1734908882658,0.00104362,95823.0,95816.0,0.03]
[1734908882857,0.417454,95819.0,95816.0,0.03]
[1734908883058,0.208742,95812.0,95807.0,0.00016218]
[1734908883204,0.00104362,95811.0,95807.0,0.00016218]
[1734908883556,0.20977462,95817.0,95816.0,0.003]
[1734908883826,0.3100394,95817.0,95816.0,0.003]
[1734908884755,0.3100394,95817.0,95807.0,0.00016218]
[1734908884963,0.20874,95813.0,95807.0,0.00016218]
[1734908885273,0.208744,95811.0,95807.0,0.00016218]
[1734908885476,0.208748,95809.0,95807.0,0.00024768]
[1734908885682,0.22545202,95808.0,95807.0,0.00024768]
[1734908885881,0.2244084,95808.0,95807.0,0.00024768]
[1734908886266,0.2244084,95808.0,95807.0,0.00424768]
[1734908886471,0.2474084,95808.0,95807.0,0.00424768]
[1734908886662,0.2474084,95808.0,95807.0,0.00024768]
[1734908886982,0.2244084,95808.0,95807.0,0.00024768]
[1734908887574,0.0772,95803.0,95761.0,0.208853]
[1734908887810,0.0459,95804.0,95741.0,0.72138393]
[1734908887811,0.208829,95772.0,95741.0,0.72138393]
[1734908888013,0.208838,95768.0,95751.0,0.208874]
[1734908888186,0.20988362,95767.0,95755.0,0.208865]
[1734908888383,0.208832,95771.0,95748.0,0.11652945]
[1734908888614,0.208832,95771.0,95753.0,0.208869]
[1734908888860,0.208841,95767.0,95753.0,0.208869]
[1734908889069,0.00016189,95767.0,95766.0,0.208842]
[1734908889662,0.00016189,95767.0,95750.0,0.12580264]
[1734908889869,0.00016189,95767.0,95764.0,0.208846]
[1734908890572,0.00016189,95767.0,95761.0,0.208851]
[1734908890913,0.00016189,95767.0,95766.0,0.208842]
[1734908891725,0.00116189,95767.0,95766.0,0.214842]
[1734908891929,0.00016189,95767.0,95766.0,0.208842]
[1734908892254,0.00116189,95767.0,95766.0,0.215842]
[1734908892660,0.00016189,95767.0,95766.0,0.208842]
[1734908892859,0.00116189,95767.0,95766.0,0.217842]
[1734908893280,0.00016189,95767.0,95766.0,0.23191388]
[1734908894643,0.00116189,95767.0,95766.0,0.24091388]
[1734908894827,0.00116189,95767.0,95766.0,0.03207188]
[1734908895031,0.00016189,95767.0,95766.0,0.02307188]
[1734908895237,0.00116189,95767.0,95766.0,0.03207188]
[1734908895358,0.00116189,95767.0,95766.0,0.009]
[1734908895570,0.00016189,95767.0,95762.0,0.208851]
[1734908895776,0.00016189,95767.0,95766.0,0.009]
[1734908895777,0.00116189,95767.0,95766.0,0.009]
[1734908896200,0.00016189,95767.0,95762.0,0.02384816]
[1734908896476,0.00220551,95767.0,95766.0,0.007]
[1734908897048,0.18091391,95767.0,95766.0,0.007]
[1734908897444,0.32861391,95767.0,95766.0,0.007]
[1734908897631,0.208842,95766.0,95765.0,0.03]
[1734908898006,0.3101504,95766.0,95762.0,8.56e-05]
[1734908898288,0.231848,95763.0,95762.0,8.56e-05]
[1734908898529,0.3331564,95763.0,95762.0,8.56e-05]
[1734908899609,0.3331564,95763.0,95762.0,0.0010856]
[1734908900739,0.023,95762.0,95734.0,0.10735992]
[1734908900946,0.22526189,95767.0,95734.0,0.02361374]
[1734908900947,0.0821,95755.0,95734.0,0.02361374]
[1734908901117,0.2089,95740.0,95725.0,0.20893]
[1734908901326,0.208903,95738.0,95725.0,0.20893]
[1734908901696,0.1013084,95754.0,95722.0,0.15]
[1734908901697,0.208914,95733.0,95722.0,0.15]
[1734908902008,0.208924,95729.0,95719.0,0.02361446]
[1734908902208,0.208924,95729.0,95725.0,0.004]
[1734908902473,0.208925,95728.0,95725.0,0.004]
[1734908902802,0.208938,95722.0,95719.0,8.56e-05]
[1734908903117,0.208942,95720.0,95719.0,0.03029479]
[1734908903654,0.208942,95720.0,95719.0,8.56e-05]
[1734908904172,0.3102504,95720.0,95719.0,8.56e-05]
[1734908904708,0.3332504,95720.0,95719.0,0.0050856]
[1734908905661,0.5140504,95720.0,95719.0,0.0050856]
[1734908905859,0.5140504,95720.0,95719.0,8.56e-05]
[1734908906092,0.308953,95715.0,95703.0,8.56e-05]
[1734908906292,0.3332614,95715.0,95703.0,8.56e-05]
[1734908907916,0.1013084,95715.0,95703.0,8.56e-05]
[1734908908123,0.3102614,95715.0,95703.0,8.56e-05]
[1734908908439,0.005,95715.0,95706.0,0.208973]
[1734908908640,0.208914,95733.0,95711.0,0.00113019]
[1734908908842,0.291603,95738.0,95722.0,0.208937]
[1734908909064,0.004,95715.0,95714.0,0.38904736]
[1734908909239,0.00104362,95740.0,95727.0,0.208926]
[1734908909441,0.208906,95737.0,95723.0,0.208935]
[1734908909701,0.00104362,95736.0,95723.0,0.208935]
[1734908910764,0.00104362,95736.0,95722.0,0.208936]
[1734908910971,0.00104362,95736.0,95727.0,0.208925]
[1734908911178,0.208875,95751.0,95728.0,0.00104451]
[1734908911617,0.208864,95756.0,95728.0,0.25235291]
[1734908911822,0.208852,95762.0,95728.0,0.3550924]
[1734908912006,0.208852,95762.0,95728.0,0.38414091]
[1734908912129,0.208842,95766.0,95728.0,0.38414091]
[1734908912536,0.287236,95769.0,95728.0,0.4047887]
[1734908912889,0.208836,95769.0,95728.0,0.4047887]
[1734908913110,0.208836,95769.0,95728.0,0.4097887]
[1734908913504,0.00104362,95768.0,95728.0,0.4097887]
[1734908914038,0.0487,95791.0,95759.0,0.15]
[1734908914240,0.0487,95791.0,95778.0,0.208816]
[1734908914443,0.00016201,95784.0,95778.0,0.208816]
[1734908914597,0.00016201,95784.0,95774.0,0.208824]
[1734908915413,0.00616201,95784.0,95774.0,0.417648]
[1734908915637,0.00616201,95784.0,95775.0,0.208822]
[1734908915795,0.00616201,95784.0,95775.0,0.208821]
[1734908916366,0.00016201,95784.0,95761.0,0.15]
[1734908916696,0.208807,95782.0,95762.0,0.00104407]
[1734908916883,0.10235202,95781.0,95761.0,0.17906404]
[1734908917045,0.208823,95775.0,95761.0,0.17906404]
[1734908917250,0.208827,95773.0,95761.0,0.17906404]
[1734908917476,0.00104362,95772.0,95761.0,0.02906404]
[1734908917773,0.208845,95765.0,95751.0,0.208874]
[1734908917948,0.00104362,95764.0,95751.0,0.208874]
[1734908918553,0.0784,95768.0,95730.0,0.1888341]
[1734908918757,0.208859,95759.0,95746.0,0.208885]
[1734908918960,0.208859,95759.0,95751.0,0.003]
[1734908919341,0.208859,95759.0,95746.0,0.208885]
[1734908919554,0.208859,95759.0,95751.0,0.003]
[1734908920360,0.20884,95767.0,95751.0,0.003]
[1734908920543,0.20884,95767.0,95751.0,0.211874]
[1734908920738,0.208844,95765.0,95751.0,0.085874]
[1734908921053,0.00104362,95764.0,95743.0,0.15]
[1734908921260,0.20884,95767.0,95744.0,0.0010443]
[1734908921435,0.208844,95765.0,95751.0,0.210874]
[1734908921715,0.00104362,95764.0,95751.0,0.208874]
[1734908921887,0.20884,95767.0,95751.0,0.417748]
[1734908922090,0.20884,95767.0,95751.0,0.208874]
[1734908922291,0.0001714,95759.0,95753.0,0.15]
[1734908922494,0.0001714,95759.0,95755.0,0.15]
[1734908922694,0.0001714,95759.0,95756.0,0.00104416]
[1734908923614,0.0001714,95759.0,95758.0,0.208859]
[1734908923757,0.0001714,95759.0,95758.0,0.358859]
[1734908923970,0.0001714,95759.0,95758.0,0.527251]
[1734908924176,0.0001714,95759.0,95758.0,0.467661]
[1734908924582,0.0001714,95759.0,95758.0,0.5689694]
[1734908924787,0.0011714,95759.0,95758.0,0.5759694]
[1734908925017,0.0001714,95759.0,95758.0,0.5689694]
[1734908925421,0.0011714,95759.0,95758.0,0.5769694]
[1734908925595,0.0011714,95759.0,95758.0,0.60575875]
[1734908925797,0.0001714,95759.0,95758.0,0.59775875]
[1734908926131,0.0091714,95759.0,95758.0,0.59875875]
[1734908927189,0.0091714,95759.0,95758.0,0.48995675]
[1734908927875,0.0091714,95759.0,95758.0,0.48895675]
[1734908927876,0.0001714,95759.0,95758.0,0.48895675]
[1734908928091,0.0091714,95759.0,95758.0,0.38864835]
[1734908928294,0.0001714,95759.0,95758.0,0.38764835]
[1734908928643,0.0091714,95759.0,95758.0,0.38864835]
[1734908929066,0.0091714,95759.0,95758.0,0.02878935]
[1734908929275,0.0181714,95759.0,95758.0,0.02978935]
[1734908929444,0.0181714,95759.0,95758.0,0.001]
[1734908930635,0.0001714,95759.0,95758.0,0.208859]
[1734908930848,0.0011714,95759.0,95758.0,0.210859]
[1734908931278,0.0001714,95759.0,95758.0,0.208859]
[1734908931480,0.0081714,95759.0,95758.0,0.208859]
[1734908931990,0.0091714,95759.0,95758.0,0.208859]
[1734908932495,0.0001714,95759.0,95758.0,0.208859]
[1734908932699,0.0001714,95759.0,95757.0,0.15]
[1734908933735,0.0011714,95759.0,95758.0,0.002]
[1734908933937,0.1024798,95759.0,95758.0,0.002]
[1734908934121,0.208859,95758.0,95730.0,0.02121056]
[1734908934481,0.208871,95753.0,95740.0,0.208897]
[1734908934639,0.00104362,95752.0,95740.0,0.208897]
[1734908935053,0.3103378,95759.0,95751.0,8.57e-05]
[1734908935235,0.208867,95755.0,95751.0,8.57e-05]
[1734908935440,0.00104362,95754.0,95751.0,8.57e-05]
[1734908935791,0.00104362,95754.0,95751.0,0.00062533]
[1734908935971,0.20887,95753.0,95751.0,0.00062533]
[1734908936176,0.00104362,95752.0,95751.0,0.00062533]
[1734908937205,0.001,95752.0,95751.0,0.00062533]
[1734908937400,0.208872,95752.0,95751.0,0.00062533]
[1734908937603,0.290972,95752.0,95751.0,0.00062533]
[1734908937949,0.291972,95752.0,95751.0,0.00262533]
[1734908938124,0.290972,95752.0,95751.0,0.00062533]
[1734908938334,0.290972,95752.0,95751.0,0.00262533]
[1734908938515,0.3922804,95752.0,95751.0,0.00262533]
[1734908938724,0.4152804,95752.0,95751.0,0.00062533]
[1734908938921,0.208934,95724.0,95711.0,8.55e-05]
[1734908939309,0.20893,95726.0,95713.0,0.208957]
[1734908939513,0.208934,95724.0,95713.0,0.208957]
[1734908939711,0.0792,95744.0,95732.0,0.208914]
[1734908939910,0.208892,95743.0,95728.0,0.208923]
[1734908940151,0.208892,95743.0,95723.0,0.1500857]
[1734908940390,0.0792,95744.0,95732.0,0.208916]
[1734908940693,0.00104362,95743.0,95733.0,0.208913]
[1734908940842,0.208894,95742.0,95729.0,0.208922]
[1734908941364,0.0792,95744.0,95729.0,0.208922]
[1734908941585,0.00104362,95743.0,95729.0,0.208922]
[1734908941866,0.00104362,95743.0,95734.0,0.208912]
[1734908942101,0.0792,95744.0,95733.0,0.002]
[1734908942350,0.208902,95739.0,95733.0,0.002]
[1734908942522,0.208894,95742.0,95733.0,0.002]
[1734908942876,0.208904,95738.0,95733.0,0.002]
[1734908943087,0.208904,95738.0,95723.0,8.57e-05]
[1734908943088,0.00104362,95737.0,95723.0,8.57e-05]
[1734908943285,0.0792,95744.0,95732.0,0.208915]
[1734908943513,0.1805084,95744.0,95732.0,0.208915]
[1734908943714,0.20993562,95743.0,95729.0,0.185922]
[1734908944173,0.20993562,95743.0,95733.0,0.002]
[1734908944380,0.1805084,95744.0,95738.0,0.238901]
[1734908944381,0.0792,95744.0,95738.0,0.238901]
[1734908944585,0.0792,95744.0,95738.0,0.03]
[1734908945203,0.31124602,95743.0,95738.0,0.03]
[1734908945403,0.023,95740.0,95738.0,0.03]
[1734908945605,0.37925302,95739.0,95738.0,0.03]
[1734908945819,0.3782094,95739.0,95738.0,0.03]
[1734908946031,0.1463084,95739.0,95738.0,0.03]
[1734908946234,0.045,95739.0,95738.0,0.03]
[1734908947203,0.0792,95744.0,95738.0,0.03]
[1734908947730,0.00054017,95752.0,95738.0,0.03]
[1734908947934,0.0001714,95751.0,95740.0,0.12584025]
[1734908948138,0.0001714,95751.0,95739.0,0.208901]
[1734908948948,0.00121502,95751.0,95739.0,0.208901]
[1734908949277,0.0001714,95751.0,95739.0,0.208901]
[1734908950428,0.00121502,95751.0,95739.0,0.208901]
[1734908950554,0.00121502,95751.0,95739.0,0.209901]
[1734908950761,0.00121502,95751.0,95739.0,0.001]
[1734908951161,0.0001714,95751.0,95739.0,0.001]
[1734908951774,0.0001714,95751.0,95739.0,0.209901]
[1734908951990,0.0001714,95751.0,95739.0,0.001]
[1734908951991,0.208877,95750.0,95739.0,0.001]
[1734908952235,0.0001714,95751.0,95739.0,0.209899]
[1734908952825,0.208877,95750.0,95739.0,0.001]
[1734908953028,0.00104362,95749.0,95738.0,0.03]
[1734908953293,0.2089,95740.0,95738.0,0.03]
[1734908953460,0.2869,95740.0,95739.0,0.001]
[1734908953664,0.3882084,95740.0,95739.0,0.001]
[1734908954215,0.078,95740.0,95738.0,0.03]
[1734908954419,0.078,95740.0,95738.0,0.031]
[1734908954691,0.208901,95739.0,95738.0,0.031]
[1734908954902,0.208901,95739.0,95738.0,0.03]
[1734908956761,0.078,95740.0,95738.0,0.031]
[1734908957187,0.078,95740.0,95738.0,0.03]
[1734908957391,0.001,95739.0,95738.0,0.031]
[1734908957812,0.208901,95739.0,95738.0,0.03]
[1734908958017,0.208901,95739.0,95738.0,0.031]
[1734908958414,0.3102094,95739.0,95738.0,0.031]
[1734908958618,0.208894,95742.0,95738.0,0.031]
[1734908958815,0.41779,95742.0,95738.0,0.031]
[1734908959019,0.208899,95740.0,95738.0,0.031]
[1734908959219,0.00104362,95739.0,95738.0,0.031]
[1734908959453,0.12535202,95739.0,95738.0,0.031]
[1734908959624,0.24945202,95739.0,95738.0,0.03]
[1734908959803,0.2494084,95739.0,95738.0,0.031]
[1734908960193,0.2254084,95739.0,95738.0,0.03]
[1734908960394,0.1251,95739.0,95738.0,0.03]
[1734908960595,0.12614362,95739.0,95738.0,0.03]
[1734908960840,0.12514362,95739.0,95738.0,0.03]
[1734908961042,0.24945202,95739.0,95738.0,0.03]
[1734908961195,0.2504084,95739.0,95738.0,0.03]
[1734908961417,0.2484084,95739.0,95738.0,0.03]
[1734908961825,0.123,95734.0,95733.0,0.0050857]
[1734908962035,0.30505202,95734.0,95733.0,0.0050857]
[1734908962263,0.4129204,95734.0,95733.0,0.0050857]
[1734908963665,0.4129204,95734.0,95733.0,0.0060857]
[1734908963863,0.4129204,95734.0,95733.0,0.0050857]
[1734908964270,0.5149204,95734.0,95733.0,0.0050857]
[1734908964510,0.5129204,95734.0,95733.0,0.0050857]
[1734908964915,0.5169204,95734.0,95733.0,0.0050857]
[1734908966147,0.5129204,95734.0,95733.0,0.0050857]
[1734908966371,0.308934,95724.0,95723.0,8.57e-05]
[1734908966522,0.5576424,95724.0,95723.0,8.57e-05]
[1734908966722,0.5576424,95724.0,95685.0,8.56e-05]
[1734908966723,0.308953,95715.0,95685.0,8.56e-05]
[1734908966945,0.5095614,95715.0,95685.0,8.56e-05]
[1734908967300,0.5593614,95715.0,95685.0,8.56e-05]
[1734908967514,0.4514,95712.0,95711.0,5e-07]
[1734908967730,0.2512,95704.0,95685.0,8.56e-05]
[1734908967933,0.1,95691.0,95685.0,8.56e-05]
[1734908968131,0.1,95691.0,95685.0,0.00024737]
[1734908968132,0.310416,95686.0,95685.0,0.00024737]
[1734908968357,0.4117244,95686.0,95685.0,0.00024737]
[1734908968836,0.1797084,95686.0,95685.0,0.00024737]
[1734908969040,0.023,95697.0,95685.0,0.00024737]
[1734908969244,0.10235202,95696.0,95685.0,0.00024737]
[1734908969456,0.208992,95697.0,95685.0,0.00024737]
[1734908969640,0.208997,95695.0,95685.0,0.00024737]
[1734908969905,0.0784,95698.0,95685.0,0.00024737]
[1734908970113,0.20899,95699.0,95686.0,0.209016]
[1734908970512,0.002,95696.0,95686.0,0.209016]
[1734908970794,0.002,95696.0,95685.0,0.00024737]
[1734908970932,0.002,95696.0,95685.0,0.00129235]
[1734908971129,0.002,95696.0,95693.0,0.209001]
[1734908971356,0.00104362,95713.0,95688.0,0.209011]
[1734908971557,0.3102684,95712.0,95698.0,0.20899]
[1734908971781,0.3102684,95712.0,95690.0,0.15]
[1734908971782,0.208952,95716.0,95690.0,0.27584025]
[1734908971982,0.289042,95721.0,95702.0,0.20898]
[1734908972161,0.5992924,95721.0,95703.0,0.208979]
[1734908973160,0.208944,95719.0,95703.0,0.208979]
[1734908973499,0.00104362,95718.0,95703.0,0.208979]
[1734908973710,0.208949,95717.0,95702.0,8.57e-05]
[1734908973914,0.00104362,95716.0,95702.0,8.57e-05]
[1734908974267,0.208953,95715.0,95702.0,8.57e-05]
[1734908974589,0.00104362,95714.0,95703.0,0.208979]
[1734908974795,0.208953,95715.0,95702.0,8.57e-05]
[1734908975005,0.00104362,95714.0,95702.0,8.57e-05]
[1734908975185,0.20999262,95717.0,95703.0,0.208979]
[1734908975369,0.00104362,95716.0,95702.0,0.03125652]
[1734908975566,0.00104362,95716.0,95702.0,8.57e-05]
[1734908975792,0.208953,95715.0,95702.0,0.208982]
[1734908975992,0.00104362,95714.0,95702.0,0.208982]
[1734908976195,0.00104362,95716.0,95702.0,0.208982]